fUST/lending_fUST_20250507
["ID","MTS","AMOUNT","RATE_DAILY","PERIOD"]
[360098640,1746549042431,-400.0,0.00019178,2]
[360098641,1746549042440,-400.0,0.00019178,2]
[360098642,1746549042450,-758.88,0.00019178,2]
[360098643,1746549042460,-400.0,0.00019178,2]
[360098644,1746549042470,-867.45,0.00019178,2]
[360098645,1746549042480,-400.0,0.00019178,2]
[360098646,1746549042489,-400.0,0.00019178,2]
[360098647,1746549042499,-400.0,0.00019178,2]
[360098648,1746549042508,-400.0,0.00019178,2]
[360098650,1746549042518,-510.74,0.00019178,2]
[360098651,1746549042529,-400.0,0.00019178,2]
[360098653,1746549042539,-503.5525166,0.00019178,2]
[360098655,1746549042548,-998.0,0.00019178,2]
[360098656,1746549042558,-400.0,0.00019178,2]
[360098657,1746549042568,-400.0,0.00019178,2]
[360098658,1746549042577,-506.19767012,0.00019178,2]
[360098659,1746549042588,-1734.58,0.00019178,2]
[360098660,1746549042597,-400.0,0.00019178,2]
[360098661,1746549042608,-400.0,0.00019178,2]
[360098662,1746549042618,-928.41,0.00019178,2]
[360098663,1746549042628,-400.0,0.00019178,2]
[360098664,1746549042640,-400.0,0.00019178,2]
[360098665,1746549042651,-400.0,0.00019178,2]
[360098666,1746549042660,-898.41,0.00019178,2]
[360098667,1746549042671,-400.0,0.00019178,2]
[360098668,1746549042681,-400.0,0.00019178,2]
[360098669,1746549042690,-400.0,0.00019178,2]
[360098670,1746549042700,-400.0,0.00019178,2]
[360098672,1746549042709,-402.30534856,0.00019178,2]
[360098674,1746549042720,-400.0,0.00019178,2]
[360098676,1746549042730,-400.0,0.00019178,2]
[360098677,1746549042740,-1618.43,0.00019178,2]
[360098678,1746549042750,-400.0,0.00019178,2]
[360098680,1746549042760,-1581.61,0.00019178,2]
[360098681,1746549042770,-291.15370518,0.00019178,2]
[360098682,1746549042780,-400.0,0.00019178,2]
[360098683,1746549042789,-400.0,0.00019178,2]
[360098684,1746549042798,-401.70271421,0.00019178,2]
[360098685,1746549042808,-400.0,0.00019178,2]
[360098686,1746549042817,-400.0,0.00019178,2]
[360098687,1746549042827,-826.09,0.00019178,2]
[360098688,1746549042837,-400.0,0.00019178,2]
[360098689,1746549042847,-400.0,0.00019178,2]
[360098690,1746549042856,-400.0,0.00019178,2]
[360098691,1746549042866,-565.81,0.00019178,2]
[360098692,1746549042875,-895.02,0.00019178,2]
[360098693,1746549042885,-400.0,0.00019178,2]
[360098694,1746549042894,-400.0,0.00019178,2]
[360098695,1746549042903,-400.0,0.00019178,2]
[360098696,1746549042913,-400.0,0.00019178,2]
[360098697,1746549042923,-400.0,0.00019178,2]
[360098698,1746549042932,-5632.07,0.00019178,2]
[360098699,1746549042941,-403.35361379,0.00019178,2]
[360098700,1746549042951,-400.0,0.00019178,2]
[360098701,1746549042961,-400.0,0.00019178,2]
[360098702,1746549042970,-400.0,0.00019178,2]
[360098703,1746549042979,-503.23147356,0.00019178,2]
[360098704,1746549042989,-401.33650777,0.00019178,2]
[360098705,1746549042998,-400.0,0.00019178,2]
[360098706,1746549043008,-400.0,0.00019178,2]
[360098707,1746549043017,-401.04113812,0.00019178,2]
[360098708,1746549043026,-400.0,0.00019178,2]
[360098709,1746549043036,-400.0,0.00019178,2]
[360098710,1746549043046,-400.0,0.00019178,2]
[360098711,1746549043055,-400.0,0.00019178,2]
[360098712,1746549043064,-400.0,0.00019178,2]
[360098713,1746549043073,-1305.23,0.00019178,2]
[360098714,1746549043083,-400.0,0.00019178,2]
[360098715,1746549043092,-400.0,0.00019178,2]
[360098716,1746549043101,-406.72015398,0.00019178,2]
[360098717,1746549043111,-400.0,0.00019178,2]
[360098718,1746549043124,-400.0,0.00019178,2]
[360098719,1746549043134,-400.0,0.00019178,2]
[360098720,1746549043143,-400.0,0.00019178,2]
[360098721,1746549043152,-400.0,0.00019178,2]
[360098722,1746549043163,-400.0,0.00019178,2]
[360098723,1746549043174,-359.53149701,0.00019178,2]
[360098724,1746549043183,-400.0,0.00019178,2]
[360098725,1746549043193,-400.0,0.00019178,2]
[360098726,1746549043203,-400.0,0.00019178,2]
[360098727,1746549043213,-400.0,0.00019178,2]
[360098728,1746549043223,-400.0,0.00019178,2]
[360098729,1746549043232,-400.0,0.00019178,2]
[360098730,1746549043242,-400.0,0.00019178,2]
[360098731,1746549043252,-400.0,0.00019178,2]
[360098732,1746549043261,-400.0,0.00019178,2]
[360098733,1746549043270,-400.0,0.00019178,2]
[360098734,1746549043279,-400.0,0.00019178,2]
[360098735,1746549043289,-400.0,0.00019178,2]
[360098736,1746549043298,-259.028416,0.00019178,2]
[360098737,1746549043307,-401.30563412,0.00019178,2]
[360098738,1746549043316,-400.0,0.00019178,2]
[360098739,1746549043326,-2534.82,0.00019178,2]
[360098740,1746549043335,-400.0,0.00019178,2]
[360098741,1746549043346,-1606.02,0.00019178,2]
[360098742,1746549043355,-840.75,0.00019178,2]
[360098743,1746549043364,-400.0,0.00019178,2]
[360098744,1746549043373,-400.0,0.00019178,2]
[360098745,1746549043382,-400.0,0.00019178,2]
[360098746,1746549043391,-498.77,0.00019178,2]
[360098747,1746549043400,-400.0,0.00019178,2]
[360098748,1746549043410,-216.3917953,0.00019178,2]
[360098749,1746549043420,-402.39565763,0.00019178,2]
[360098750,1746549043430,-400.0,0.00019178,2]
[360098752,1746549043440,-204.21910831,0.00019178,2]
[360098754,1746549043449,-750.83,0.00019178,2]
[360098756,1746549043458,-400.0,0.00019178,2]
[360098758,1746549043468,-400.0,0.00019178,2]
[360098760,1746549043477,-400.0,0.00019178,2]
[360098762,1746549043486,-400.0,0.00019178,2]
[360098764,1746549043496,-400.0,0.00019178,2]
[360098766,1746549043505,-400.0,0.00019178,2]
[360098768,1746549043515,-400.0,0.00019178,2]
[360098770,1746549043525,-400.0,0.00019178,2]
[360098772,1746549043534,-400.0,0.00019178,2]
[360098774,1746549043544,-548.31,0.00019178,2]
[360098776,1746549043553,-400.0,0.00019178,2]
[360098778,1746549043564,-1454.56,0.00019178,2]
[360098780,1746549043574,-943.08,0.00019178,2]
[360098782,1746549043583,-400.0,0.00019178,2]
[360098784,1746549043593,-400.0,0.00019178,2]
[360098786,1746549043604,-400.0,0.00019178,2]
[360098788,1746549043613,-400.0,0.00019178,2]
[360098790,1746549043623,-409.23229525,0.00019178,2]
[360098792,1746549043632,-400.0,0.00019178,2]
[360098794,1746549043641,-400.0,0.00019178,2]
[360098796,1746549043651,-400.0,0.00019178,2]
[360098798,1746549043661,-400.0,0.00019178,2]
[360098800,1746549043672,-400.0,0.00019178,2]
[360098802,1746549043681,-400.0,0.00019178,2]
[360098804,1746549043691,-400.0,0.00019178,2]
[360098806,1746549043700,-400.0,0.00019178,2]
[360098808,1746549043710,-400.0,0.00019178,2]
[360098810,1746549043719,-400.0,0.00019178,2]
[360098812,1746549043728,-400.0,0.00019178,2]
[360098814,1746549043738,-1374.78,0.00019178,2]
[360098816,1746549043748,-400.13538946,0.00019178,2]
[360098818,1746549043757,-400.0,0.00019178,2]
[360098820,1746549043767,-400.0,0.00019178,2]
[360098822,1746549043776,-540.54,0.00019178,2]
[360098824,1746549043785,-343.05919239,0.00019178,2]
[360098826,1746549043795,-401.28101685,0.00019178,2]
[360098828,1746549043804,-400.0,0.00019178,2]
[360098829,1746549043814,-404.70681988,0.00019178,2]
[360098831,1746549043823,-922.04,0.00019178,2]
[360098833,1746549043834,-500.0,0.00019178,2]
[360098835,1746549043844,-400.0,0.00019178,2]
[360098837,1746549043853,-500.0,0.00019178,2]
[360098839,1746549043862,-500.0,0.00019178,2]
[360098841,1746549043872,-400.0,0.00019178,2]
[360098843,1746549043881,-2516.44,0.00019178,2]
[360098845,1746549043890,-500.0,0.00019178,2]
[360098847,1746549043899,-500.0,0.00019178,2]
[360098849,1746549043909,-500.0,0.00019178,2]
[360098851,1746549043918,-500.0,0.00019178,2]
[360098853,1746549043927,-663.81,0.00019178,2]
[360098855,1746549043936,-500.0,0.00019178,2]
[360098857,1746549043945,-500.0,0.00019178,2]
[360098859,1746549043955,-500.0,0.00019178,2]
[360098861,1746549043965,-500.0,0.00019178,2]
[360098863,1746549043974,-500.0,0.00019178,2]
[360098865,1746549043983,-500.0,0.00019178,2]
[360098867,1746549043992,-400.0,0.00019178,2]
[360098869,1746549044001,-500.0,0.00019178,2]
[360098871,1746549044010,-500.0,0.00019178,2]
[360098873,1746549044019,-403.2886634,0.00019178,2]
[360098875,1746549044028,-400.0,0.00019178,2]
[360098877,1746549044037,-500.0,0.00019178,2]
[360098879,1746549044047,-400.0,0.00019178,2]
[360098881,1746549044056,-500.0,0.00019178,2]
[360098883,1746549044065,-500.0,0.00019178,2]
[360098885,1746549044075,-500.0,0.00019178,2]
[360098887,1746549044084,-500.0,0.00019178,2]
[360098889,1746549044094,-500.0,0.00019178,2]
[360098890,1746549044103,-500.0,0.00019178,2]
[360098892,1746549044113,-400.0,0.00019178,2]
[360098894,1746549044124,-418.5,0.00019178,2]
[360098896,1746549044134,-400.0,0.00019178,2]
[360098898,1746549044144,-1061.64,0.00019178,2]
[360098900,1746549044153,-400.0,0.00019178,2]
[360098902,1746549044162,-400.0,0.00019178,2]
[360098904,1746549044171,-400.0,0.00019178,2]
[360098906,1746549044180,-400.0,0.00019178,2]
[360098908,1746549044189,-400.0,0.00019178,2]
[360098910,1746549044198,-500.0,0.00019178,2]
[360098912,1746549044207,-500.0,0.00019178,2]
[360098914,1746549044216,-400.0,0.00019178,2]
[360098916,1746549044226,-500.0,0.00019178,2]
[360098918,1746549044235,-400.0,0.00019178,2]
[360098920,1746549044244,-317.15975652,0.00019178,2]
[360098922,1746549044253,-400.0,0.00019178,2]
[360098924,1746549044262,-203.04065088,0.00019178,2]
[360098926,1746549044271,-400.0,0.00019178,2]
[360098934,1746549044435,-418.59343452,0.00019178,2]
[360098935,1746549044444,-500.0,0.00019178,2]
[360098936,1746549044453,-437.22,0.00019178,2]
[360098937,1746549044462,-1904.36,0.00019178,2]
[360098938,1746549044471,-500.0,0.00019178,2]
[360098939,1746549044480,-500.0,0.00019178,2]
[360098940,1746549044489,-500.0,0.00019178,2]
[360098941,1746549044498,-1883.16,0.00019178,2]
[360098942,1746549044507,-651.21,0.00019178,2]
[360098944,1746549044517,-1940.39,0.00019178,2]
[360098946,1746549044526,-400.0,0.00019178,2]
[360098948,1746549044535,-400.0,0.00019178,2]
[360098950,1746549044545,-400.0,0.00019178,2]
[360098952,1746549044554,-400.0,0.00019178,2]
[360098954,1746549044563,-400.0,0.00019178,2]
[360098956,1746549044573,-400.0,0.00019178,2]
[360098958,1746549044582,-400.97084348,0.00019178,2]
[360098960,1746549044591,-400.0,0.00019178,2]
[360098962,1746549044601,-400.0,0.00019178,2]
[360098964,1746549044610,-4275.0,0.00019178,2]
[360098966,1746549044620,-2298.75,0.00019178,2]
[360098968,1746549044630,-1690.5,0.00019178,2]
[360098970,1746549044640,-231.50128477,0.00019178,2]
[360098972,1746549044649,-1269.33,0.00019178,2]
[360098974,1746549044662,-400.0,0.00019178,2]
[360098976,1746549044672,-400.0,0.00019178,2]
[360098978,1746549044681,-400.0,0.00019178,2]
[360098980,1746549044690,-571.32,0.00019178,2]
[360098982,1746549044699,-400.0,0.00019178,2]
[360098984,1746549044709,-400.0,0.00019178,2]
[360098986,1746549044719,-400.0,0.00019178,2]
[360098988,1746549044729,-1643.56,0.00019178,2]
[360098990,1746549044738,-461.86,0.00019178,2]
[360098992,1746549044748,-400.0,0.00019178,2]
[360098994,1746549044757,-400.0,0.00019178,2]
[360098996,1746549044766,-400.0,0.00019178,2]
[360098998,1746549044776,-615.5,0.00019178,2]
[360099000,1746549044785,-400.0,0.00019178,2]
[360099002,1746549044798,-647.42,0.00019178,2]
[360099004,1746549044807,-7223.6,0.00019178,2]
[360099006,1746549044817,-400.0,0.00019178,2]
[360099008,1746549044826,-400.0,0.00019178,2]
[360099010,1746549044835,-400.0,0.00019178,2]
[360099012,1746549044845,-1202.38,0.00019178,2]
[360099014,1746549044854,-666.84,0.00019178,2]
[360099016,1746549044863,-400.0,0.00019178,2]
[360099019,1746549044873,-400.0,0.00019178,2]
[360099020,1746549044882,-778.7,0.00019178,2]
[360099023,1746549044891,-400.0,0.00019178,2]
[360099024,1746549044901,-502.25070254,0.00019178,2]
[360099027,1746549044910,-421.82,0.00019178,2]
[360099029,1746549044920,-400.0,0.00019178,2]
[360099031,1746549044929,-400.0,0.00019178,2]
[360099033,1746549044939,-400.0,0.00019178,2]
[360099035,1746549044948,-400.0,0.00019178,2]
[360099037,1746549044957,-400.0,0.00019178,2]
[360099039,1746549044966,-400.0,0.00019178,2]
[360099041,1746549044975,-400.0,0.00019178,2]
[360099043,1746549044984,-418.77,0.00019178,2]
[360099045,1746549044993,-400.0,0.00019178,2]
[360099046,1746549045003,-458.42,0.00019178,2]
[360099049,1746549045012,-612.07,0.00019178,2]
[360099051,1746549045024,-400.0,0.00019178,2]
[360099053,1746549045033,-612.07,0.00019178,2]
[360099055,1746549045042,-612.07,0.00019178,2]
[360099057,1746549045051,-612.07,0.00019178,2]
[360099059,1746549045060,-612.07,0.00019178,2]
[360099061,1746549045069,-612.07,0.00019178,2]
[360099063,1746549045079,-612.07,0.00019178,2]
[360099065,1746549045088,-8678.46,0.00019178,2]
[360099067,1746549045098,-612.07,0.00019178,2]
[360099069,1746549045107,-400.91459012,0.00019178,2]
[360099071,1746549045117,-612.07,0.00019178,2]
[360099073,1746549045131,-612.07,0.00019178,2]
[360099075,1746549045140,-612.07,0.00019178,2]
[360099077,1746549045150,-612.07,0.00019178,2]
[360099079,1746549045160,-612.07,0.00019178,2]
[360099081,1746549045170,-612.07,0.00019178,2]
[360099083,1746549045179,-612.07,0.00019178,2]
[360099085,1746549045189,-612.07,0.00019178,2]
[360099087,1746549045199,-627.65,0.00019178,2]
[360099089,1746549045208,-612.07,0.00019178,2]
[360099091,1746549045218,-400.0,0.00019178,2]
[360099093,1746549045227,-612.07,0.00019178,2]
[360099095,1746549045236,-612.07,0.00019178,2]
[360099097,1746549045246,-2093.85,0.00019178,2]
[360099099,1746549045255,-612.07,0.00019178,2]
[360099101,1746549045266,-401.22799411,0.00019178,2]
[360099103,1746549045276,-612.07,0.00019178,2]
[360099105,1746549045286,-612.07,0.00019178,2]
[360099107,1746549045295,-612.07,0.00019178,2]
[360099109,1746549045305,-612.11327311,0.00019178,2]
[360099111,1746549045314,-1741.08,0.00019178,2]
[360099113,1746549045323,-400.0,0.00019178,2]
[360099115,1746549045332,-469.61,0.00019178,2]
[360099117,1746549045342,-215.2150357,0.00019178,2]
[360099119,1746549045351,-400.0,0.00019178,2]
[360099121,1746549045361,-1318.86,0.00019178,2]
[360099123,1746549045370,-3838.81,0.00019178,2]
[360099125,1746549045379,-283.18379737,0.00019178,2]
[360099127,1746549045388,-400.0,0.00019178,2]
[360099129,1746549045397,-3107.34,0.00019178,2]
[360099131,1746549045406,-400.0,0.00019178,2]
[360099133,1746549045415,-400.0,0.00019178,2]
[360099135,1746549045425,-400.0,0.00019178,2]
[360099137,1746549045434,-400.0,0.00019178,2]
[360099139,1746549045443,-400.0,0.00019178,2]
[360099141,1746549045453,-1456.25,0.00019178,2]
[360099143,1746549045463,-406.12,0.00019178,2]
[360099145,1746549045472,-400.0,0.00019178,2]
[360099147,1746549045481,-424.31932119,0.00019178,2]
[360099149,1746549045491,-400.0,0.00019178,2]
[360099151,1746549045500,-400.0,0.00019178,2]
[360099153,1746549045510,-400.0,0.00019178,2]
[360099157,1746549045519,-400.0,0.00019178,2]
[360099158,1746549045529,-400.0,0.00019178,2]
[360099161,1746549045538,-896.18,0.00019178,2]
[360099163,1746549045548,-401.39677314,0.00019178,2]
[360099165,1746549045557,-510.78,0.00019178,2]
[360099167,1746549045566,-400.0,0.00019178,2]
[360099169,1746549045576,-613.43,0.00019178,2]
[360099171,1746549045586,-897.74,0.00019178,2]
[360099173,1746549045597,-537.46,0.00019178,2]
[360099175,1746549045606,-400.0,0.00019178,2]
[360099177,1746549045615,-401.30935804,0.00019178,2]
[360099180,1746549045627,-2433.51,0.00019178,2]
[360099184,1746549045636,-469.63,0.00019178,2]
[360099187,1746549045646,-400.0,0.00019178,2]
[360099189,1746549045655,-400.0,0.00019178,2]
[360099191,1746549045664,-500.0,0.00019178,2]
[360099194,1746549045674,-400.0,0.00019178,2]
[360099198,1746549045684,-400.71,0.00019178,2]
[360099201,1746549045694,-400.0,0.00019178,2]
[360099204,1746549045703,-3687.73,0.00019178,2]
[360099207,1746549045712,-400.0,0.00019178,2]
[360099210,1746549045722,-1311.27,0.00019178,2]
[360099213,1746549045731,-400.0,0.00019178,2]
[360099216,1746549045741,-358.0,0.00019178,2]
[360099219,1746549045750,-402.76247651,0.00019178,2]
[360099222,1746549045759,-1000.0,0.00019178,2]
[360099225,1746549045769,-400.0,0.00019178,2]
[360099228,1746549045778,-400.0,0.00019178,2]
[360099231,1746549045787,-400.0,0.00019178,2]
[360099234,1746549045796,-400.0,0.00019178,2]
[360099236,1746549045806,-401.01869542,0.00019178,2]
[360099238,1746549045815,-400.0,0.00019178,2]
[360099240,1746549045824,-400.0,0.00019178,2]
[360099242,1746549045834,-400.0,0.00019178,2]
[360099244,1746549045843,-400.0,0.00019178,2]
[360099246,1746549045853,-1020.4,0.00019178,2]
[360099248,1746549045862,-400.0,0.00019178,2]
[360099250,1746549045871,-409.14060265,0.00019178,2]
[360099252,1746549045880,-18522.95,0.00019178,2]
[360099254,1746549045889,-400.0,0.00019178,2]
[360099256,1746549045899,-400.0,0.00019178,2]
[360099258,1746549045907,-500.84393885,0.00019178,2]
[360099260,1746549045917,-400.0,0.00019178,2]
[360099262,1746549045926,-2508.4,0.00019178,2]
[360099264,1746549045936,-400.0,0.00019178,2]
[360099266,1746549045945,-404.34239598,0.00019178,2]
[360099268,1746549045955,-400.0,0.00019178,2]
[360099270,1746549045964,-400.0,0.00019178,2]
[360099272,1746549045973,-400.0,0.00019178,2]
[360099274,1746549045983,-400.0,0.00019178,2]
[360099276,1746549045992,-400.0,0.00019178,2]
[360099278,1746549046001,-1481.29,0.00019178,2]
[360099280,1746549046011,-1755.77,0.00019178,2]
[360099282,1746549046020,-400.0,0.00019178,2]
[360099284,1746549046029,-841.77,0.00019178,2]
[360099286,1746549046038,-400.0,0.00019178,2]
[360099288,1746549046048,-400.0,0.00019178,2]
[360099290,1746549046057,-400.0,0.00019178,2]
[360099292,1746549046067,-400.0,0.00019178,2]
[360099294,1746549046076,-400.0,0.00019178,2]
[360099296,1746549046085,-400.0,0.00019178,2]
[360099298,1746549046095,-2816.34,0.00019178,2]
[360099300,1746549046104,-400.0,0.00019178,2]
[360099302,1746549046113,-400.0,0.00019178,2]
[360099304,1746549046124,-400.0,0.00019178,2]
[360099306,1746549046133,-400.0,0.00019178,2]
[360099308,1746549046143,-1466.55,0.00019178,2]
[360099310,1746549046152,-400.0,0.00019178,2]
[360099312,1746549046162,-400.84686798,0.00019178,2]
[360099314,1746549046172,-8535.29,0.00019178,2]
[360099316,1746549046183,-400.0,0.00019178,2]
[360099318,1746549046193,-400.0,0.00019178,2]
[360099320,1746549046203,-1312.39,0.00019178,2]
[360099322,1746549046212,-1451.36,0.00019178,2]
[360099324,1746549046222,-400.0,0.00019178,2]
[360099326,1746549046231,-3620.9,0.00019178,2]
[360099328,1746549046241,-425.97,0.00019178,2]
[360099330,1746549046250,-400.0,0.00019178,2]
[360099332,1746549046260,-400.0,0.00019178,2]
[360099334,1746549046269,-400.0,0.00019178,2]
[360099336,1746549046278,-400.0,0.00019178,2]
[360099338,1746549046288,-400.0,0.00019178,2]
[360099340,1746549046297,-307.28029054,0.00019178,2]
[360099342,1746549046306,-400.0,0.00019178,2]
[360099344,1746549046316,-400.0,0.00019178,2]
[360099346,1746549046326,-5458.74,0.00019178,2]
[360099348,1746549046335,-400.0,0.00019178,2]
[360099350,1746549046345,-500.0,0.00019178,2]
[360099352,1746549046355,-500.0,0.00019178,2]
[360099354,1746549046364,-500.0,0.00019178,2]
[360099356,1746549046373,-2467.34,0.00019178,2]
[360099358,1746549046383,-533.07018499,0.00019178,2]
[360099374,1746549046514,-427.19,0.00019178,2]
[360099376,1746549046524,-401.69087347,0.00019178,2]
[360099378,1746549046533,-400.0,0.00019178,2]
[360099380,1746549046543,-400.0,0.00019178,2]
[360099382,1746549046553,-563.37,0.00019178,2]
[360099384,1746549046562,-400.0,0.00019178,2]
[360099386,1746549046572,-613.57,0.00019178,2]
[360099388,1746549046582,-400.0,0.00019178,2]
[360099390,1746549046591,-1483.8,0.00019178,2]
[360099392,1746549046602,-265.84274164,0.00019178,2]
[360099394,1746549046612,-400.0,0.00019178,2]
[360099396,1746549046622,-400.0,0.00019178,2]
[360099398,1746549046632,-400.0,0.00019178,2]
[360099400,1746549046641,-400.0,0.00019178,2]
[360099402,1746549046651,-400.0,0.00019178,2]
[360099405,1746549046662,-400.0,0.00019178,2]
[360099407,1746549046671,-400.0,0.00019178,2]
[360099409,1746549046680,-400.0,0.00019178,2]
[360099411,1746549046690,-2880.62,0.00019178,2]
[360099412,1746549046700,-400.0,0.00019178,2]
[360099415,1746549046710,-400.0,0.00019178,2]
[360099417,1746549046720,-2569.27,0.00019178,2]
[360099419,1746549046731,-400.0,0.00019178,2]
[360099421,1746549046740,-400.0,0.00019178,2]
[360099423,1746549046749,-400.0,0.00019178,2]
[360099425,1746549046758,-400.0,0.00019178,2]
[360099427,1746549046768,-400.42065851,0.00019178,2]
[360099429,1746549046777,-432.39,0.00019178,2]
[360099431,1746549046788,-400.0,0.00019178,2]
[360099433,1746549046797,-403.05136874,0.00019178,2]
[360099435,1746549046807,-403.83784036,0.00019178,2]
[360099437,1746549046817,-400.0,0.00019178,2]
[360099439,1746549046827,-417.11,0.00019178,2]
[360099441,1746549046836,-400.0,0.00019178,2]
[360099443,1746549046846,-400.0,0.00019178,2]
[360099445,1746549046855,-400.0,0.00019178,2]
[360099447,1746549046865,-460.53,0.00019178,2]
[360099449,1746549046875,-400.0,0.00019178,2]
[360099451,1746549046884,-400.0,0.00019178,2]
[360099453,1746549046894,-698.58,0.00019178,2]
[360099455,1746549046903,-400.0,0.00019178,2]
[360099457,1746549046912,-400.0,0.00019178,2]
[360099459,1746549046922,-400.0,0.00019178,2]
[360099461,1746549046932,-3008.22,0.00019178,2]
[360099463,1746549046942,-400.0,0.00019178,2]
[360099465,1746549046951,-400.0,0.00019178,2]
[360099467,1746549046961,-2143.33,0.00019178,2]
[360099469,1746549046970,-400.0,0.00019178,2]
[360099471,1746549046979,-400.0,0.00019178,2]
[360099474,1746549046990,-400.0,0.00019178,2]
[360099476,1746549047000,-400.0,0.00019178,2]
[360099478,1746549047009,-675.2,0.00019178,2]
[360099480,1746549047019,-400.0,0.00019178,2]
[360099482,1746549047027,-400.0,0.00019178,2]
[360099484,1746549047037,-400.0,0.00019178,2]
[360099486,1746549047046,-401.36702011,0.00019178,2]
[360099488,1746549047055,-500.0,0.00019178,2]
[360099490,1746549047064,-500.0,0.00019178,2]
[360099492,1746549047074,-500.0,0.00019178,2]
[360099494,1746549047083,-500.0,0.00019178,2]
[360099496,1746549047093,-487.20015273,0.00019178,2]
[360099498,1746549047104,-500.0,0.00019178,2]
[360099500,1746549047113,-500.0,0.00019178,2]
[360099502,1746549047126,-500.0,0.00019178,2]
[360099504,1746549047135,-500.0,0.00019178,2]
[360099506,1746549047144,-500.0,0.00019178,2]
[360099508,1746549047154,-500.0,0.00019178,2]
[360099510,1746549047163,-500.0,0.00019178,2]
[360099512,1746549047173,-500.0,0.00019178,2]
[360099514,1746549047183,-500.0,0.00019178,2]
[360099516,1746549047193,-2451.0,0.00019178,2]
[360099518,1746549047205,-400.0,0.00019178,2]
[360099520,1746549047214,-400.0,0.00019178,2]
[360099522,1746549047224,-234.1504007,0.00019178,2]
[360099524,1746549047234,-151.0,0.00019178,2]
[360099526,1746549047243,-709.483782,0.00019178,2]
[360099528,1746549047252,-300.0,0.00019178,2]
[360099530,1746549047261,-151.0,0.000192,2]
[360099533,1746549047271,-160.0,0.00019216,2]
[360099535,1746549047281,-160.0,0.00019216,2]
[360099537,1746549047290,-160.0,0.00019216,2]
[360099539,1746549047299,-160.0,0.00019216,2]
[360099541,1746549047308,-156.587,0.00019233,2]
[360099543,1746549047317,-162.380719,0.00019288,2]
[360099545,1746549047327,-151.0,0.000193,2]
[360099547,1746549047336,-241921.30960816,0.00019329,2]
[360099652,1746549048320,-400.0,0.00019178,2]
[360099654,1746549048330,-400.0,0.00019178,2]
[360099656,1746549048339,-400.0,0.00019178,2]
[360099658,1746549048349,-277.83555201,0.00019178,2]
[360099659,1746549048358,-66754.13803109,0.00019329,2]
[360099872,1746550232307,-179.55941,0.00016096,2]
[360099874,1746550232318,-155.91146256,0.00016769,2]
[360099876,1746550232327,-1375.89623484,0.00016772,2]
[360099878,1746550232338,-255.0,0.00016868,2]
[360099879,1746550232347,-300.0,0.00016868,2]
[360099881,1746550232357,-789.10715697,0.00016869,2]
[360099884,1746550232368,-3419.67825476,0.00016869,2]
[360099894,1746550232452,-561.80508367,0.00016868,2]
[360099896,1746550232461,-383.19491633,0.00016869,2]
[360100447,1746550238326,-25463.77040685,0.00016869,2]